bitfinex-derivatives/quotes_SOLF0:USTF0_20250911
["timestamp","ask_amount","ask_price","bid_price","bid_amount"]
[1757623665456,7.34924439,225.9,225.86,1.95]
[1757623665649,7.34924439,225.9,225.85,107.38]
[1757623665854,7.34924439,225.9,225.86,1.95]
[1757623666051,7.34924439,225.9,225.85,107.38]
[1757623666251,0.02924439,225.9,225.85,107.38]
[1757623666755,0.02924439,225.9,225.86,1.95]
[1757623667150,0.02924439,225.9,225.85,107.38]
[1757623667545,0.02924439,225.9,225.86,1.95]
[1757623667750,0.02924439,225.9,225.85,107.38]
[1757623667951,7.34924439,225.9,225.86,1.95]
[1757623668150,7.34924439,225.9,225.85,107.38]
[1757623668346,7.34924439,225.9,225.86,1.95]
[1757623668756,7.34924439,225.9,225.85,107.38]
[1757623668957,7.34924439,225.9,225.86,1.95]
[1757623669359,7.34924439,225.9,225.85,107.38]
[1757623671158,7.34924439,225.9,225.86,1.97]
[1757623671651,7.34924439,225.9,225.85,107.38]
[1757623671857,7.34924439,225.9,225.86,1.97]
[1757623672354,7.34924439,225.9,225.85,107.38]
[1757623672552,7.34924439,225.9,225.86,1.97]
[1757623672957,7.34924439,225.9,225.85,107.38]
[1757623674254,7.34924439,225.9,225.86,1.97]
[1757623674958,7.34924439,225.9,225.85,107.38]
[1757623675159,7.34924439,225.9,225.86,1.97]
[1757623675359,7.34924439,225.9,225.85,107.38]
[1757623675658,7.34924439,225.9,225.86,1.97]
[1757623676259,7.34924439,225.9,225.85,107.38]
[1757623676857,7.34924439,225.9,225.86,1.97]
[1757623677058,7.34924439,225.9,225.85,107.38]
[1757623677359,7.34924439,225.9,225.86,1.97]
[1757623677760,7.34924439,225.9,225.85,107.38]
[1757623677962,7.34924439,225.9,225.86,1.97]
[1757623679363,7.34924439,225.9,225.85,107.38]
[1757623680257,6.95,225.89,225.85,107.38]
[1757623680456,6.95,225.89,225.86,1.97]
[1757623681361,6.95,225.89,225.85,107.38]
[1757623681955,6.95,225.89,225.86,1.97]
[1757623682151,6.95,225.89,225.85,107.38]
[1757623682356,6.95,225.89,225.86,1.97]
[1757623682555,6.95,225.89,225.85,107.38]
[1757623682757,6.95,225.89,225.86,1.97]
[1757623682963,6.95,225.89,225.85,107.38]
[1757623683163,6.95,225.89,225.86,1.97]
[1757623683760,6.95,225.89,225.85,107.38]
[1757623683961,6.95,225.89,225.86,1.97]
[1757623684359,6.95,225.89,225.85,107.38]
[1757623684554,6.95,225.89,225.86,1.97]
[1757623684759,6.95,225.89,225.85,107.38]
[1757623685160,6.95,225.89,225.86,1.97]
[1757623685560,6.95,225.89,225.85,107.38]
[1757623686063,6.95,225.89,225.86,1.97]
[1757623688162,6.95,225.89,225.85,107.38]
[1757623688464,0.02924439,225.9,225.85,107.38]
[1757623688658,6.97924439,225.9,225.85,107.38]
[1757623688861,6.97924439,225.9,225.86,1.97]
[1757623689062,6.95,225.89,225.85,107.38]
[1757623689362,6.95,225.89,225.86,1.97]
[1757623689961,6.95,225.89,225.85,107.38]
[1757623690262,6.95,225.89,225.86,1.97]
[1757623692064,0.02924439,225.9,225.85,107.38]
[1757623692255,0.02924439,225.9,225.85,109.35]
[1757623692455,6.95,225.89,225.85,109.35]
[1757623693255,0.02924439,225.9,225.85,109.35]
[1757623693466,6.95,225.89,225.85,109.35]
[1757623693663,0.02924439,225.9,225.85,109.35]
[1757623693961,0.02924439,225.9,225.81,55.75574168]
[1757623694267,6.95,225.89,225.82,107.38]
[1757623696471,6.97924439,225.9,225.83,1.97]
[1757623704274,6.97924439,225.9,225.83,9.39974656]
[1757623704574,6.97924439,225.9,225.83,7.42974656]
[1757623704876,6.97924439,225.9,225.84,1.97]
[1757623705576,6.97924439,225.9,225.84,9.39974656]
[1757623707369,0.02924439,225.9,225.84,7.42974656]
[1757623707673,0.02924439,225.9,225.87,5.42313449]
[1757623707873,0.02924439,225.9,225.89,1.97]
[1757623710576,7.42,225.99,225.89,2.41]
[1757623710777,7.42,226.09,225.93,3.45313449]
[1757623711075,10.4376859,226.08,225.94,109.33]
[1757623711275,10.4376859,226.07,225.94,109.33]
[1757623711477,10.4376859,226.06,225.94,109.33]
[1757623711673,7.42,226.04,225.94,109.33]
[1757623711872,7.42,226.09,225.98,0.03036491]
[1757623712178,10.4292447,226.08,225.99,107.36]
[1757623712377,62.58407381,226.1,225.99,107.36]
[1757623712378,7.42,226.06,225.99,107.36]
[1757623712570,6.76497961,226.05,225.99,107.36]
[1757623712872,3.67830626,226.04,225.99,107.36]
[1757623713171,62.58407381,226.1,225.99,107.36]
[1757623713372,7.42,226.08,225.99,107.36]
[1757623713572,7.42,226.06,225.99,107.36]
[1757623713780,6.75955634,226.05,225.99,107.36]
[1757623713981,62.58407381,226.1,225.99,107.36]
[1757623714179,7.42,226.08,225.99,107.36]
[1757623714377,10.41895059,226.07,225.99,107.36]
[1757623714579,6.75830751,226.06,225.99,107.36]
[1757623714781,3.67467044,226.05,225.99,107.36]
[1757623715080,7.42,226.09,225.99,107.36]
[1757623715280,7.42,226.07,225.99,107.36]
[1757623715480,7.42,226.05,225.99,107.36]
[1757623715681,64.79317229,226.1,225.99,107.36]
[1757623715977,7.42,226.08,225.99,107.36]
[1757623716282,7.42,226.06,225.99,107.36]
[1757623716482,7.42,226.09,226.0,1.97]
[1757623716781,2.20909848,226.18,226.05,1.97]
[1757623716972,7.42,226.16,226.05,1.97]
[1757623717171,2.20909848,226.18,226.05,1.97]
[1757623717172,7.42,226.14,226.05,1.97]
[1757623717373,10.41086739,226.13,226.05,1.97]
[1757623717577,17.83086739,226.12,226.05,1.97]
[1757623717882,6.75300573,226.11,226.07,0.03146734]
[1757623718077,7.42,226.09,226.07,0.03146734]
[1757623718278,7.42,226.17,226.07,0.03146734]
[1757623718474,7.42,226.15,226.07,0.03146734]
[1757623718678,7.42,226.13,226.07,0.03146734]
[1757623718877,10.39993852,226.12,226.07,0.03146734]
[1757623719082,7.42,226.1,226.07,0.03146734]
[1757623719381,7.42,226.17,226.07,0.03146734]
[1757623719583,7.42,226.15,226.07,0.03146734]
[1757623719781,7.42,226.13,226.07,0.03146734]
[1757623719983,6.74319126,226.12,226.07,0.03146734]
[1757623720182,7.42,226.1,226.07,0.03146734]
[1757623720383,7.42,226.17,226.07,0.03146734]
[1757623720583,7.42,226.15,226.07,0.03146734]
[1757623720782,2.20909848,226.18,226.07,0.03146734]
[1757623720783,7.42,226.13,226.07,0.03146734]
[1757623721082,7.42,226.11,226.07,0.03146734]
[1757623721282,7.42,226.17,226.07,0.03146734]
[1757623721482,7.42,226.15,226.07,0.03146734]
[1757623721678,10.3889918,226.16,226.07,0.03146734]
[1757623721679,7.42,226.13,226.07,0.03146734]
[1757623721877,7.42,226.11,226.07,0.03146734]
[1757623722080,7.42,226.17,226.07,0.03146734]
[1757623722277,9.62909848,226.15,226.07,0.03146734]
[1757623722479,7.42,226.13,226.07,0.03146734]
[1757623722679,3.6415824,226.12,226.07,0.03146734]
[1757623722874,2.20909848,226.15,226.07,0.03146734]
[1757623722875,7.42,226.13,226.07,0.03146734]
[1757623723183,7.42,226.14,226.07,0.03146734]
[1757623723383,7.42,226.12,226.07,0.03146734]
[1757623723584,7.42,226.14,226.07,0.03146734]
[1757623723780,6.71126811,226.13,226.07,0.03146734]
[1757623724087,7.42,226.14,226.07,0.03146734]
[1757623724286,6.71038585,226.13,226.07,0.03146734]
[1757623724586,7.42,226.14,226.07,0.03146734]
[1757623724782,7.42,226.12,226.07,0.03146734]
[1757623724987,7.42,226.15,226.07,0.03146734]
[1757623725187,7.42,226.13,226.04,4.17909848]
[1757623725388,7.42,226.13,226.09,0.0302276]
[1757623727182,2.20909848,226.16,226.09,0.0302276]
[1757623727490,14.12612046,226.15,226.09,0.0302276]
[1757623727683,7.42,226.13,226.09,0.0302276]
[1757623737095,9.62909848,226.13,226.09,0.0302276]
[1757623743194,2.20909848,226.13,226.09,0.0302276]
[1757623743694,6.88,226.12,226.09,0.0302276]
[1757623744494,2.20909848,226.13,226.09,0.0302276]
[1757623744895,6.88,226.12,226.09,0.0302276]
[1757623745598,2.20909848,226.13,226.09,0.0302276]
[1757623745897,6.88,226.12,226.09,0.0302276]
[1757623748599,2.20909848,226.13,226.09,0.0302276]
[1757623748795,6.88,226.11,226.09,0.0302276]
[1757623748991,6.88,226.12,226.09,0.0302276]
[1757623749199,6.88,226.09,225.98,2.0]
[1757623749494,2.20909848,226.1,225.98,15.30072236]
[1757623749801,6.88,226.09,225.98,2.0]
[1757623750398,0.02832267,226.06,225.98,2.0]
[1757623750593,6.90832267,226.06,225.98,2.0]
[1757623754203,6.90832267,226.06,225.98,15.52498875]
[1757623754600,6.90832267,226.06,225.98,17.73408723]
[1757623754800,6.90832267,226.06,225.99,2.0]
[1757623757505,6.88,226.04,225.99,4.20909848]
[1757623757705,6.88,226.05,225.99,2.20909848]
[1757623758101,6.88,226.05,225.98,2.0]
[1757623758306,6.88,226.05,225.99,2.20909848]
[1757623765417,0.02832267,226.06,225.95,43.88882502]
[1757623765617,10.39239312,226.05,225.93,297.3]
[1757623765814,6.88,226.03,225.93,406.76909848]
[1757623766117,3.65592764,226.02,225.93,406.76909848]
[1757623766317,0.02805125,226.0,225.94,2.0]
[1757623766622,3.65592764,225.99,225.93,406.76909848]
[1757623766811,6.90805125,226.0,225.94,2.0]
[1757623767018,3.97976716,225.99,225.94,2.0]
[1757623767317,0.02805125,226.0,225.97,2.0]
[1757623767517,0.02805125,226.0,225.98,1.99]
[1757623767919,6.93805125,226.0,225.98,1.99]
[1757623768118,0.02805125,226.0,225.97,2.20909848]
[1757623768317,0.02805125,226.0,225.98,1.99]
[1757623769812,0.02805125,226.0,225.97,2.20909848]
[1757623770413,0.02805125,226.0,225.98,1.99]
[1757623770618,0.02805125,226.0,225.99,109.25]
[1757623786732,0.02805125,226.0,225.99,109.69]
[1757623787931,6.91,226.09,226.0,1.96]
[1757623788135,3.1127111,226.08,226.0,1.96]
[1757623788434,6.91,226.09,226.0,1.96]
[1757623788632,3.11266785,226.08,226.0,1.96]
[1757623788834,6.91,226.09,226.0,1.96]
[1757623789030,3.11266785,226.08,226.02,0.03334796]
[1757623789236,6.91,226.09,226.03,1.96]
[1757623789436,3.11262355,226.08,226.04,107.24]
[1757623789636,6.91,226.09,226.04,107.24]
[1757623789833,3.11262355,226.08,226.05,1.96]
[1757623790029,6.91,226.09,226.05,1.96]
[1757623790533,6.91,226.09,226.04,107.24]
[1757623790735,6.91,226.09,226.05,1.96]
[1757623790936,6.91,226.09,226.04,107.24]
[1757623791133,6.91,226.16,226.05,1.96]
[1757623791333,6.91,226.14,226.05,1.96]
[1757623791535,6.91,226.12,226.05,1.96]
[1757623791730,4.92689017,226.17,226.07,0.02958783]
[1757623791731,6.91,226.1,226.07,0.02958783]
[1757623791936,6.91,226.08,226.07,0.02958783]
[1757623795647,4.92689017,226.17,226.07,0.02958783]
[1757623795648,6.91,226.16,226.07,0.02958783]
[1757623795850,6.91,226.14,226.07,0.02958783]
[1757623796044,6.64098989,226.13,226.07,0.02958783]
[1757623796341,10.02298837,226.12,226.08,1.96]
[1757623796540,6.91,226.17,226.07,1.98958783]
[1757623796738,6.91,226.15,226.07,1.98958783]
[1757623797243,6.91,226.23,226.08,1.96]
[1757623797442,6.91,226.21,226.08,1.96]
[1757623797646,6.84,226.19,226.08,1.96]
[1757623797849,3.10965717,226.18,226.12,0.0336139]
[1757623798049,9.94965717,226.17,226.14,1.96]
[1757623798249,6.84,226.17,226.14,1.96]
[1757623799151,6.84,226.25,226.13,0.02891517]
[1757623799352,6.84,226.23,226.13,0.02891517]
[1757623799542,6.84,226.21,226.13,0.02891517]
[1757623799745,6.84,226.19,226.13,0.02891517]
[1757623799945,6.84,226.17,226.13,0.02891517]
[1757623801353,6.84,226.21,226.13,0.02891517]
[1757623801548,3.45077691,226.22,226.13,0.02891517]
[1757623801549,6.61685773,226.2,226.13,0.02891517]
[1757623801745,13.45712647,226.19,226.13,0.02891517]
[1757623801949,3.45077691,226.22,226.13,0.02891517]
[1757623801950,6.84,226.17,226.13,0.02891517]
[1757623803046,6.84,226.21,226.13,0.02891517]
[1757623803243,6.84,226.19,226.13,0.02891517]
[1757623808252,6.84,226.17,226.13,0.02891517]
[1757623809154,0.03201326,226.17,226.03,1.99]
[1757623809354,6.84,226.15,226.04,312.78]
[1757623809653,6.84,226.16,226.04,312.78]
[1757623809854,3.45077691,226.18,226.04,312.78]
[1757623810061,3.09471731,226.17,226.04,312.78]
[1757623810357,6.84,226.12,226.04,312.78]
[1757623810558,6.84,226.12,226.05,1.99]
[1757623812262,6.84,226.12,226.05,65.31]
[1757623814464,0.03401479,226.13,226.05,65.31]
[1757623814659,6.84,226.12,226.05,65.31]
[1757623821668,0.03401479,226.13,226.06,1.99]
[1757623824468,6.84,226.12,226.06,1.99]
[1757623837068,0.03401479,226.13,226.06,1.99]
[1757623837685,0.03401479,226.13,226.08,2.0]
[1757623837978,7.49401479,226.13,226.07,109.18]
[1757623838381,0.03401479,226.13,226.02,7.39894611]
[1757623838576,7.46,226.12,226.04,2.20667266]
[1757623838975,7.46,226.12,226.05,107.18]
[1757623839175,0.03114132,226.1,226.05,107.18]
[1757623839377,7.49114132,226.1,226.05,107.18]
[1757623840078,0.03114132,226.1,226.06,2.0]
[1757623840277,0.03114132,226.1,226.05,107.18]
[1757623840278,0.03114132,226.1,226.07,2.20667266]
[1757623841283,0.03114132,226.1,226.08,2.0]
[1757623841487,0.03114132,226.1,226.05,107.18]
[1757623841785,0.03114132,226.1,226.09,2.0]
[1757623842884,7.46,226.09,226.08,2.20667266]
[1757623843384,0.03114132,226.1,226.08,2.0]
[1757623846287,0.03114132,226.1,226.07,107.18]
[1757623846684,0.03114132,226.1,226.08,2.0]
[1757623847180,7.46,226.09,226.02,109.18]
[1757623848078,7.46,226.09,226.02,2.0]
[1757623848278,3.75750304,226.08,226.03,109.2]
[1757623848483,7.46,226.09,226.03,109.2]
[1757623848683,7.46,226.07,226.03,109.2]
[1757623848885,0.03114132,226.1,226.03,109.2]
[1757623849088,11.21755377,226.09,226.03,109.2]
[1757623849287,3.75755377,226.08,226.03,109.2]
[1757623849588,7.46,226.09,226.03,109.2]
[1757623849890,3.75716721,226.08,226.03,109.2]
[1757623850087,7.46,226.09,226.03,109.2]
[1757623850284,7.46,226.07,226.03,109.2]
[1757623850589,7.46,226.09,226.03,109.2]
[1757623850887,7.46,226.07,226.03,109.2]
[1757623851086,7.46,226.09,226.03,109.2]
[1757623851287,3.75657191,226.08,226.03,109.2]
[1757623851488,7.46,226.09,226.03,109.2]
[1757623851791,7.46,226.07,226.04,2.0]
[1757623852182,0.03114132,226.1,226.04,2.0]
[1757623860889,6.99,226.08,226.04,2.0]
[1757623861090,6.99,226.09,226.03,107.18]
[1757623864796,0.03114132,226.1,225.99,45.03725543]
[1757623864992,6.99,226.08,226.0,107.22]
[1757623865194,6.99,226.06,226.0,107.22]
[1757623865794,0.03179718,226.05,226.0,107.22]
[1757623865995,7.02179718,226.05,226.01,2.0]
[1757623866592,6.99,226.04,226.01,2.0]
[1757623866992,6.99,226.04,226.01,109.22]
[1757623868101,6.99,226.04,226.01,109.2]
[1757623868297,6.99,226.04,226.01,2.0]
[1757623868498,6.99,226.04,226.01,109.2]
[1757623868796,6.99,226.04,225.99,40.83058277]
[1757623868994,7.02179718,226.05,225.99,40.83058277]
[1757623869198,7.02179718,226.05,225.99,148.05058277]
[1757623869897,6.99,226.04,225.99,148.05058277]
[1757623870395,3.7487507,226.03,225.94,109.22]
[1757623870693,3.7487507,226.02,225.94,2.0]
[1757623870899,6.99,226.0,225.94,21.5]
[1757623871196,2.20667266,226.06,225.94,19.5]
[1757623871398,6.99,225.98,225.91,2.0]
[1757623871697,6.99,225.98,225.92,39.06]
[1757623871997,0.03326021,225.97,225.93,2.0]
[1757623872192,0.03326021,225.97,225.92,39.06]
[1757623872393,7.02326021,225.97,225.93,2.0]
[1757623873202,6.99,225.96,225.92,41.06]
[1757623873497,0.03326021,225.97,225.92,2.0]
[1757623873896,0.03326021,225.97,225.91,99.66]
[1757623874097,0.03326021,225.97,225.92,2.0]
[1757623874296,0.03326021,225.97,225.91,99.66]
[1757623874904,0.03326021,225.97,225.92,2.0]
[1757623875102,0.03326021,225.97,225.91,99.66]
[1757623875301,0.03326021,225.97,225.92,2.0]
[1757623875497,0.03326021,225.97,225.91,99.66]
[1757623875698,0.03326021,225.97,225.92,2.0]
[1757623876297,0.03326021,225.97,225.91,45.5]
[1757623876900,0.03326021,225.97,225.92,2.0]
[1757623877102,0.03326021,225.97,225.91,45.5]
[1757623878000,0.03326021,225.97,225.92,2.0]
[1757623878993,6.99,225.96,225.92,2.0]
[1757623879599,6.99,225.96,225.9,107.34]
[1757623880607,6.99,225.96,225.89,2.0]
[1757623880797,6.99,225.96,225.89,109.34]
[1757623881508,6.99,225.96,225.89,2.0]
[1757623883307,0.03326021,225.97,225.91,2.20667266]
[1757623884003,0.03326021,225.97,225.92,2.0]
[1757623884403,0.03326021,225.97,225.91,2.20667266]
[1757623885005,0.03326021,225.97,225.92,2.0]
[1757623885406,0.03326021,225.97,225.91,2.20667266]
[1757623885601,0.03326021,225.97,225.92,2.0]
[1757623885807,0.03326021,225.97,225.91,2.20667266]
[1757623886409,0.03326021,225.97,225.92,2.0]
[1757623886605,0.03326021,225.97,225.91,2.20667266]
[1757623886806,0.03326021,225.97,225.92,2.0]
[1757623887306,0.03326021,225.97,225.91,2.20667266]
[1757623887509,0.03326021,225.97,225.92,2.0]
[1757623887902,7.04326021,225.97,225.92,2.0]
[1757623888104,7.04326021,225.97,225.91,2.20667266]
[1757623888308,7.04326021,225.97,225.92,2.0]
[1757623888508,0.03326021,225.97,225.91,4.20667266]
[1757623890405,7.01,225.96,225.91,2.0]
[1757623890811,0.03326021,225.97,225.91,2.0]
[1757623891111,7.04326021,225.97,225.89,2.0]
[1757623900027,0.03326021,225.97,225.86,2.0]
[1757623900230,7.01,225.96,225.86,2.0]
[1757623902021,7.01,225.96,225.87,2.0]
[1757623910434,7.01,225.94,225.87,2.0]
[1757623917636,7.01,225.94,225.87,2.0]
[1757623919940,0.03326021,225.97,225.83,66.53]
[1757623920135,10.84614726,225.96,225.83,66.53]
[1757623920334,7.75232582,225.95,225.83,66.53]
[1757623920535,0.0339324,225.92,225.84,1.99]
[1757623921437,7.2639324,225.92,225.84,1.99]
[1757623938045,7.74290975,225.91,225.82,13.05117159]
[1757623938245,7.23,225.89,225.8,1.99]
[1757623938444,7.23,225.87,225.77,1.99]
[1757623938752,7.23,225.85,225.84,0.02957159]
[1757623939048,15.10744618,225.85,225.84,0.02957159]
[1757623939649,10.97806125,225.85,225.84,0.02957159]
[1757623940242,7.23,225.85,225.84,0.02957159]
[1757623940942,11.02454219,225.85,225.84,0.02957159]
[1757623941246,11.02454219,225.85,225.76,1.99]
[1757623941549,7.23,225.85,225.76,1.99]
[1757623961459,2.24510602,225.87,225.73,123.14149722]
[1757623961762,3.7825612,225.86,225.73,123.14149722]
[1757623961964,7.48,225.86,225.74,2.01]
[1757623962263,7.48,225.81,225.74,2.01]
[1757623967167,7.48,225.81,225.75,2.01]
[1757623974472,0.03401007,225.82,225.81,2.01]
[1757623980378,0.03401007,225.82,225.78,2.21341306]
[1757623980579,0.03401007,225.82,225.79,2.01]
[1757623980976,0.03401007,225.82,225.78,2.21341306]
[1757623981181,0.03401007,225.82,225.79,2.01]
[1757623981782,0.03401007,225.82,225.78,2.21341306]
[1757623981984,0.03401007,225.82,225.79,2.01]
[1757623982386,0.03401007,225.82,225.78,2.21341306]
[1757623983387,0.03401007,225.82,225.79,2.01]
[1757623983583,0.03401007,225.82,225.78,2.21341306]
[1757623983788,0.03401007,225.82,225.79,2.01]
[1757623983985,7.18401007,225.82,225.79,2.01]
[1757623984188,7.15,225.81,225.79,2.01]
[1757623984589,0.03401007,225.82,225.78,2.21341306]
[1757623984788,7.18401007,225.82,225.79,2.01]
[1757623985284,7.15,225.81,225.79,2.01]
[1757623985883,0.03401007,225.82,225.76,2.01]
[1757623986087,0.03401007,225.82,225.78,2.21341306]
[1757623986286,0.03401007,225.82,225.79,2.01]
[1757623986688,0.03401007,225.82,225.78,2.21341306]
[1757623987387,0.03401007,225.82,225.79,2.01]
[1757623987589,0.03401007,225.82,225.78,2.21341306]
[1757623987894,0.03401007,225.82,225.79,2.01]
[1757623988091,0.03401007,225.82,225.78,2.21341306]
[1757623988391,0.03401007,225.82,225.79,2.01]
[1757623988790,0.03401007,225.82,225.78,2.21341306]
[1757623988994,7.15,225.81,225.78,4.22341306]
[1757623994900,7.15,225.81,225.79,2.01]
[1757623998097,0.03401007,225.82,225.74,2.21341306]
[1757623998405,0.03401007,225.82,225.75,2.01]
[1757624002798,0.03401007,225.82,225.77,2.21341306]
[1757624003002,0.03401007,225.82,225.78,2.01]
[1757624004201,0.03401007,225.82,225.81,2.01]
[1757624008007,2.21341306,225.94,225.81,2.01]
[1757624008008,6.91,225.93,225.81,2.01]
[1757624008204,6.91,225.91,225.81,2.01]
[1757624008504,6.91,225.89,225.81,2.01]
[1757624008706,6.97779479,225.88,225.81,2.01]
[1757624008905,3.78522605,225.87,225.81,2.01]
[1757624009105,6.91,225.89,225.81,2.01]
[1757624009314,0.03268827,225.87,225.81,2.01]
[1757624010500,6.94268827,225.87,225.81,2.01]
[1757624019812,4.92689017,225.83,225.81,2.01]
[1757624020108,6.91,225.81,225.78,2.02]
[1757624020313,6.91,225.81,225.79,4.72199242]
[1757624020314,6.97589546,225.8,225.79,4.72199242]
[1757624020619,10.69425335,225.8,225.79,4.72199242]
[1757624020907,1.37270123,225.8,225.79,9.47518655]
[1757624021415,0.03056029,225.82,225.79,9.47518655]
[1757624021613,0.03056029,225.82,225.8,4.75319413]
[1757624021918,0.03056029,225.82,225.81,10.08849027]
[1757624023217,6.94056029,225.82,225.81,10.08849027]
[1757624027411,6.94056029,225.82,225.81,9.86435637]
[1757624032417,6.94056029,225.82,225.81,5.11116224]
[1757624032619,6.94056029,225.82,225.81,9.51364942]
[1757624033521,0.03056029,225.82,225.81,17.01364942]
[1757624045328,0.03056029,225.82,225.81,75.97364942]
[1757624046128,0.03056029,225.82,225.81,17.01364942]
[1757624046329,0.03056029,225.82,225.81,75.23364942]
[1757624046630,0.03056029,225.82,225.81,74.97364942]
[1757624049830,0.03056029,225.82,225.81,16.75364942]
[1757624051833,0.03056029,225.82,225.81,74.69364942]
[1757624052040,0.03056029,225.82,225.81,16.75364942]
[1757624052341,0.03056029,225.82,225.81,124.05364942]
[1757624054344,0.03056029,225.82,225.81,16.75364942]
[1757624054538,0.03056029,225.82,225.81,75.41364942]
[1757624054841,0.03056029,225.82,225.81,16.75364942]
[1757624055141,0.03056029,225.82,225.81,75.39364942]
[1757624055539,0.03056029,225.82,225.81,16.75364942]
[1757624055738,0.03056029,225.82,225.81,75.39364942]
[1757624056343,0.03056029,225.82,225.81,124.05364942]
[1757624058240,0.03056029,225.82,225.81,16.75364942]
[1757624058542,0.03056029,225.82,225.81,124.05364942]
[1757624061245,0.03056029,225.82,225.81,16.75364942]
[1757624061434,0.03056029,225.82,225.81,77.39364942]
[1757624062244,0.03056029,225.82,225.81,124.03364942]
[1757624063146,6.91,225.88,225.81,124.03364942]
[1757624063342,6.91,225.88,225.83,7.24]
[1757624063544,6.91,225.91,225.85,7.24]
[1757624063740,4.92689017,225.93,225.86,9.51364942]
[1757624063937,6.91,225.92,225.87,9.51364942]
[1757624064140,4.92689017,225.91,225.88,9.51364942]
[1757624064446,6.91,225.9,225.89,9.51364942]
[1757624076455,6.91,225.9,225.89,4.40248718]
[1757624077155,6.91,225.9,225.86,0.02866464]
[1757624077355,6.91,225.9,225.87,8.07617052]
[1757624077558,6.91,225.9,225.88,3.89549201]
[1757624077753,7.28,225.94,225.86,0.02866464]
[1757624078055,7.28,225.94,225.87,8.07617052]
[1757624078257,7.28,225.94,225.88,3.89549201]
[1757624078454,7.28,225.94,225.86,0.02866464]
[1757624078656,7.28,225.94,225.87,8.07656036]
[1757624078857,7.28,225.94,225.88,3.89568005]
[1757624079060,7.28,225.94,225.86,0.02866464]
[1757624079261,7.28,225.94,225.87,8.07675672]
[1757624079456,7.28,225.94,225.88,8.07675672]
[1757624079657,7.28,225.94,225.89,3.89577476]
[1757624079956,7.28,225.94,225.86,7.58866464]
[1757624080257,7.28,225.94,225.87,8.07664695]
[1757624080462,2.21219637,225.93,225.88,8.07664695]
[1757624080653,7.28,225.92,225.89,3.89572475]
[1757624080859,7.28,225.92,225.86,7.58866464]
[1757624081157,7.28,225.92,225.87,8.07677847]
[1757624081358,7.28,225.92,225.88,8.07677847]
[1757624081558,7.28,225.92,225.89,3.89578672]
[1757624081758,7.28,225.92,225.86,7.58866464]
[1757624082057,7.28,225.92,225.87,8.07698872]
[1757624082362,7.28,225.92,225.88,4.18110059]
[1757624082561,7.28,225.92,225.86,7.58866464]
[1757624082863,7.28,225.92,225.87,4.18122206]
[1757624083062,7.28,225.92,225.88,4.18122206]
[1757624083264,7.28,225.92,225.86,7.58866464]
[1757624083461,7.28,225.92,225.87,4.18135732]
[1757624083661,7.28,225.92,225.88,4.18135732]
[1757624083960,7.28,225.92,225.86,7.58866464]
[1757624084157,7.28,225.92,225.87,4.18135732]
[1757624084358,7.28,225.92,225.88,4.18135732]
[1757624084567,7.28,225.92,225.86,7.58866464]
[1757624084756,2.21219637,225.93,225.87,4.1814056]
[1757624084962,7.28,225.92,225.88,4.1814056]
[1757624085162,7.28,225.92,225.86,7.58866464]
[1757624085462,2.21219637,225.93,225.87,4.18144492]
[1757624085664,2.21219637,225.93,225.88,4.18144492]
[1757624085962,7.28,225.92,225.86,7.58866464]
[1757624086162,7.28,225.92,225.87,4.18144492]
[1757624086363,7.28,225.92,225.88,4.18149749]